bitfinex/quotes_SOLUSD_20240628
["timestamp","ask_amount","ask_price","bid_price","bid_amount"]
[1719600424474,6.1386,141.88,141.83,7.072]
[1719600425163,6.1386,141.88,141.83,14.1226]
[1719600426371,6.1386,141.88,141.83,7.072]
[1719600427181,6.1386,141.88,141.83,14.1226]
[1719600427680,10.51859237,141.92,141.86,14.1207]
[1719600428004,10.51859237,141.92,141.87,7.072]
[1719600428005,6.1484,141.92,141.87,7.072]
[1719600428990,20.68795767,141.91,141.83,7.072]
[1719600429586,20.68795767,141.91,141.81,34.1762]
[1719600430370,20.68795767,141.91,141.82,7.0508]
[1719600430581,20.68795767,141.91,141.83,7.072]
[1719600430889,20.0,141.91,141.84,14.1218]
[1719600431200,20.0,141.91,141.84,7.0498]
[1719600431567,20.0,141.91,141.86,7.072]
[1719600432277,20.0,141.91,141.87,7.072]
[1719600432482,20.68795767,141.91,141.87,7.072]
[1719600433375,20.0,141.91,141.84,14.1221]
[1719600434072,20.0,141.91,141.84,7.072]
[1719600434397,0.68795767,141.9,141.83,51.0466]
[1719600434600,0.68795767,141.9,141.84,7.072]
[1719600434980,0.68795767,141.9,141.81,23.5997]
[1719600435178,0.68795767,141.9,141.82,7.0511]
[1719600435387,0.68795767,141.9,141.83,7.072]
[1719600437481,0.68795767,141.9,141.84,7.072]
[1719600437679,20.68795767,141.91,141.84,7.072]
[1719600437893,20.0,141.91,141.84,14.1217]
[1719600438094,20.0,141.91,141.85,7.072]
[1719600438702,20.0,141.91,141.85,14.1216]
[1719600438885,20.0,141.91,141.85,7.072]
[1719600440003,20.0,141.91,141.86,7.072]
[1719600440205,0.68795767,141.9,141.86,7.072]
[1719600440610,20.68795767,141.91,141.86,7.072]
[1719600440903,20.68795767,141.91,141.84,7.072]
[1719600442192,20.0,141.91,141.84,7.072]
[1719600442503,6.1484,141.92,141.86,7.072]
[1719600442886,6.1484,141.92,141.86,14.1211]
[1719600443081,6.1484,141.92,141.86,7.072]
[1719600443281,10.94610206,141.96,141.86,7.0489]
[1719600443497,20.68795767,141.95,141.87,7.072]
[1719600444014,20.68795767,141.95,141.86,40.4689]
[1719600444310,20.68795767,141.95,141.87,7.072]
[1719600444510,20.68795767,141.95,141.86,33.42]
[1719600445214,20.68795767,141.95,141.87,7.072]
[1719600447534,20.68795767,141.95,141.87,14.1206]
[1719600447686,20.68795767,141.95,141.88,7.072]
[1719600447884,20.68795767,141.95,141.87,7.072]
[1719600448617,20.0,141.95,141.92,16.72]
[1719600452293,37.40795767,141.95,141.86,17.6228]
[1719600452625,16.72,141.94,141.9,7.072]
[1719600453896,37.40795767,141.95,141.9,23.792]
[1719600455312,37.40795767,141.95,141.86,7.072]
[1719600455313,16.72,141.94,141.86,7.072]
[1719600455541,6.3912,141.91,141.87,16.72]
[1719600455742,23.79915767,141.91,141.86,16.72]
[1719600456535,23.79915767,141.91,141.82,17.6269]
[1719600456842,16.72,141.88,141.82,16.72]
[1719600457013,17.40795767,141.87,141.79,34.0605]
[1719600457336,6.3912,141.85,141.77,7.0532]
[1719600457515,23.79915767,141.85,141.8,16.72]
[1719600458061,23.79915767,141.85,141.77,7.0532]
[1719600458213,23.79915767,141.85,141.8,16.72]
[1719600458532,6.3912,141.85,141.8,7.0521]
[1719600458745,6.3912,141.85,141.81,7.072]
[1719600458923,6.3912,141.85,141.8,7.0521]
[1719600459809,6.3912,141.85,141.78,24.6848]
[1719600460415,6.3912,141.85,141.78,31.7568]
[1719600460633,0.68795767,141.84,141.78,31.7568]
[1719600460823,6.3912,141.85,141.79,7.0526]
[1719600461038,0.68795767,141.84,141.78,24.6851]
[1719600461655,0.68795767,141.84,141.77,7.0536]
[1719600461820,20.68795767,141.84,141.76,5.71376913]
[1719600462020,20.68795767,141.84,141.75,24.6904]
[1719600462327,20.68795767,141.84,141.73,33.5]
[1719600462328,54.18795767,141.84,141.72,18.483494]
[1719600462535,82.66914116,141.84,141.72,18.483494]
[1719600462743,82.66914116,141.84,141.72,32.611494]
[1719600463129,6.1183,141.83,141.72,32.611494]
[1719600463334,20.68795767,141.82,141.72,25.539494]
[1719600463843,20.68795767,141.82,141.72,32.611494]
[1719600464153,20.68795767,141.82,141.72,7.915794]
[1719600464526,20.68795767,141.82,141.72,0.843794]
[1719600464854,6.1183,141.81,141.72,0.843794]
[1719600465028,41.87795767,141.8,141.72,0.843794]
[1719600465228,0.68795767,141.79,141.72,0.843794]
[1719600466048,27.6302,141.78,141.72,0.843794]
[1719600466358,20.68795767,141.77,141.72,0.843794]
[1719600466531,0.68795767,141.76,141.72,0.843794]
[1719600469729,20.68795767,141.77,141.72,0.843794]
[1719600469931,0.68795767,141.77,141.72,0.843794]
[1719600471559,6.4402,141.78,141.72,0.843794]
[1719600471861,0.68795767,141.77,141.72,0.843794]
[1719600472858,20.68795767,141.77,141.72,0.843794]
[1719600473073,20.0,141.77,141.72,0.843794]
[1719600473451,0.68795767,141.82,141.73,7.0555]
[1719600473452,6.97885767,141.82,141.73,7.0555]
[1719600473648,6.97885767,141.82,141.72,34.343794]
[1719600474056,6.97885767,141.82,141.73,1.41069478]
[1719600474257,6.97885767,141.82,141.72,41.399794]
[1719600474756,20.0,141.81,141.72,41.399794]
[1719600474980,0.68795767,141.8,141.72,41.399794]
[1719600475272,0.68795767,141.8,141.72,0.843794]
[1719600475563,0.68795767,141.8,141.72,7.915794]
[1719600475959,0.68795767,141.8,141.72,14.971594]
[1719600476753,20.0,141.81,141.73,14.1275]
[1719600476981,20.0,141.81,141.76,7.072]
[1719600477886,20.0,141.81,141.76,14.1261]
[1719600478089,7.36375591,141.84,141.77,7.072]
[1719600478263,0.68795767,141.84,141.77,7.072]
[1719600479175,0.68795767,141.84,141.76,7.072]
[1719600479679,20.68795767,141.84,141.76,7.072]
[1719600480270,20.68795767,141.84,141.77,7.072]
[1719600480784,20.68795767,141.84,141.75,7.072]
[1719600481178,20.68795767,141.84,141.75,14.1266]
[1719600481771,20.68795767,141.84,141.76,8.48228256]
[1719600481971,20.68795767,141.84,141.77,1.41018347]
[1719600482459,20.68795767,141.84,141.76,7.072]
[1719600482855,20.68795767,141.84,141.75,7.072]
[1719600483467,20.68795767,141.84,141.75,14.1264]
[1719600483671,20.68795767,141.84,141.77,7.072]
[1719600484905,20.68795767,141.84,141.76,7.072]
[1719600485079,41.87795767,141.84,141.72,0.843794]
[1719600485290,75.37795767,141.84,141.72,0.843794]
[1719600485612,6.4229,141.83,141.72,0.843794]
[1719600485906,20.68795767,141.82,141.72,0.843794]
[1719600486402,20.68795767,141.82,141.72,14.971694]
[1719600487193,20.68795767,141.82,141.72,7.915794]
[1719600487594,20.68795767,141.82,141.72,0.843794]
[1719600487903,20.68795767,141.82,141.72,7.915794]
[1719600488483,20.68795767,141.82,141.72,0.843794]
[1719600489018,20.68795767,141.82,141.72,7.915794]
[1719600489205,20.68795767,141.82,141.72,14.971594]
[1719600490114,41.87795767,141.82,141.72,0.843794]
[1719600490321,20.68795767,141.82,141.72,0.843794]
[1719600491324,20.68795767,141.82,141.72,7.915794]
[1719600491928,20.68795767,141.82,141.72,14.971894]
[1719600493243,20.68795767,141.82,141.72,0.843794]
[1719600497844,60.8762,141.81,141.72,0.843794]
[1719600498025,6.1862,141.79,141.72,0.843794]
[1719600498225,20.68795767,141.78,141.72,0.843794]
[1719600500077,20.0,141.78,141.72,0.843794]
[1719600500249,6.1862,141.79,141.72,0.843794]
[1719600501071,6.1862,141.79,141.73,1.40940127]
[1719600501273,6.1862,141.79,141.74,1.40930183]
[1719600501966,6.1862,141.79,141.72,0.843794]
[1719600502644,0.68795767,141.78,141.72,0.843794]
[1719600508282,6.1862,141.79,141.72,7.899694]
[1719600508485,6.1862,141.79,141.72,0.843794]
[1719600509155,0.68795767,141.78,141.72,0.843794]
[1719600509363,20.68795767,141.78,141.72,0.843794]
[1719600510079,20.0,141.78,141.72,0.843794]
[1719600510277,20.68795767,141.78,141.72,0.843794]
[1719600512878,16.77,141.77,141.72,0.843794]
[1719600513055,0.68795767,141.76,141.72,0.843794]
[1719600513257,16.77,141.75,141.72,0.843794]
[1719600516512,0.68795767,141.76,141.72,0.843794]
[1719600516722,16.77,141.76,141.72,0.843794]
[1719600517421,0.68795767,141.75,141.72,0.843794]
[1719600517593,17.45795767,141.75,141.72,0.843794]
[1719600517793,0.68795767,141.74,141.72,0.843794]
[1719600518293,17.45795767,141.74,141.72,0.843794]
[1719600518525,0.68795767,141.73,141.72,0.843794]
[1719600518725,17.45795767,141.73,141.72,0.843794]
[1719600519027,16.77,141.73,141.72,0.843794]
[1719600519225,16.77,141.74,141.72,0.843794]
[1719600519396,0.68795767,141.73,141.72,0.843794]
[1719600519601,16.77,141.74,141.72,0.843794]
[1719600519909,16.77,141.75,141.72,0.843794]
[1719600520110,17.45795767,141.74,141.72,0.843794]
[1719600520409,0.68795767,141.73,141.72,0.843794]
[1719600522539,16.77,141.74,141.72,0.843794]
[1719600522717,16.77,141.75,141.72,0.843794]
[1719600524314,0.68795767,141.74,141.72,0.843794]
[1719600524616,16.77,141.75,141.72,0.843794]
[1719600524948,0.68795767,141.74,141.72,0.843794]
[1719600525424,17.45795767,141.74,141.72,0.843794]
[1719600525627,0.68795767,141.73,141.72,0.843794]
[1719600526543,16.77,141.74,141.72,0.843794]
[1719600528439,0.68795767,141.77,141.72,0.843794]
[1719600528750,16.77,141.76,141.72,0.843794]
[1719600528925,20.0,141.75,141.72,0.843794]
[1719600530647,16.77,141.76,141.72,0.843794]
[1719600534060,0.68795767,141.75,141.72,0.843794]
[1719600535465,16.77,141.74,141.72,0.843794]
[1719600535760,0.68795767,141.73,141.72,0.843794]
[1719600538966,37.45795767,141.73,141.72,0.843794]
[1719600539163,36.77,141.73,141.72,0.843794]
[1719600544488,20.0,141.73,141.72,0.843794]
[1719600544715,36.77,141.73,141.72,0.843794]
[1719600545410,37.45795767,141.73,141.72,0.843794]
[1719600545611,58.64795767,141.73,141.72,0.843794]
[1719600546114,37.45795767,141.73,141.72,0.843794]
[1719600546285,58.64795767,141.73,141.72,0.843794]
[1719600549595,34.69378349,141.72,141.61,32.6126]
[1719600549803,16.77,141.66,141.61,32.6126]
[1719600549988,16.77,141.67,141.62,16.77]
[1719600550190,0.68795767,141.66,141.61,15.8426]
[1719600550389,0.68795767,141.66,141.62,16.77]
[1719600551695,0.68795767,141.66,141.61,32.6126]
[1719600552945,37.45795767,141.66,141.61,15.8426]
[1719600553148,0.68795767,141.65,141.61,15.8426]
[1719600553625,17.45795767,141.65,141.61,15.8426]
[1719600553825,0.68795767,141.64,141.61,15.8426]
[1719600554725,36.77,141.66,141.61,32.6126]
[1719600554929,20.0,141.66,141.62,16.77]
[1719600555243,0.68795767,141.7,141.64,16.77]
[1719600555244,20.0,141.67,141.64,16.77]
[1719600555449,0.68795767,141.66,141.63,16.77]
[1719600555736,16.77,141.68,141.62,16.77]
[1719600555942,20.0,141.67,141.63,16.77]
[1719600556247,20.0,141.67,141.64,16.77]
[1719600556422,20.0,141.68,141.64,16.77]
[1719600557742,16.77,141.69,141.64,16.77]
[1719600557743,0.68795767,141.72,141.67,32.9574]
[1719600558037,17.45795767,141.74,141.68,16.77]
[1719600558243,0.68795767,141.73,141.69,16.77]
[1719600558827,0.68795767,141.73,141.7,16.77]
[1719600560155,0.68795767,141.74,141.7,16.77]
[1719600560646,17.45795767,141.74,141.69,16.77]
[1719600560850,20.68795767,141.73,141.69,16.77]
[1719600561920,20.68795767,141.73,141.68,16.77]
[1719600562247,16.77,141.72,141.67,16.1874]
[1719600562425,0.68795767,141.71,141.67,16.1874]
[1719600563344,16.77,141.69,141.63,21.9157]
[1719600563520,0.68795767,141.68,141.63,38.6857]
[1719600564419,0.68795767,141.68,141.64,16.77]
[1719600565338,16.77,141.69,141.64,16.77]
[1719600565543,0.68795767,141.72,141.65,16.77]
[1719600565733,16.77,141.71,141.66,16.77]
[1719600566045,20.68795767,141.7,141.66,16.77]
[1719600566550,20.0,141.69,141.66,16.77]
[1719600566733,20.68795767,141.71,141.66,16.77]
[1719600566929,0.68795767,141.7,141.66,16.77]
[1719600567962,36.77,141.71,141.64,7.072]
[1719600567963,20.0,141.71,141.64,7.072]
[1719600568137,20.68795767,141.72,141.67,16.77]
[1719600568341,0.68795767,141.72,141.67,16.77]
[1719600568545,0.68795767,141.75,141.7,16.77]
[1719600568843,0.68795767,141.75,141.63,21.9157]
[1719600568844,0.68795767,141.75,141.71,16.77]
[1719600569050,16.77,141.76,141.71,16.77]
[1719600569263,8.3998231,141.79,141.69,15.6553]
[1719600569264,0.68795767,141.75,141.69,15.6553]
[1719600569471,0.68795767,141.75,141.71,16.77]
[1719600569764,0.68795767,141.76,141.71,16.77]
[1719600569938,16.77,141.77,141.72,16.77]
[1719600570138,20.68795767,141.76,141.72,16.77]
[1719600570367,20.68795767,141.76,141.71,16.77]
[1719600570746,20.68795767,141.76,141.69,15.6553]
[1719600570948,20.0,141.75,141.69,15.6553]
[1719600571270,20.68795767,141.78,141.69,15.6553]
[1719600575663,24.37962245,141.78,141.69,15.6553]
[1719600576267,45.56962245,141.78,141.69,15.6553]
[1719600577675,45.56962245,141.78,141.65,23.1084]
[1719600577877,3.69166478,141.77,141.65,23.1084]
[1719600578174,0.68795767,141.76,141.65,23.1084]
[1719600578869,20.68795767,141.76,141.65,23.1084]
[1719600580375,20.68795767,141.76,141.65,16.049]
[1719600580678,20.68795767,141.76,141.65,23.1086]
[1719600581473,20.68795767,141.76,141.65,16.049]
[1719600584179,20.68795767,141.76,141.65,33.6974]
[1719600584386,0.68795767,141.75,141.65,33.6974]
[1719600585484,0.68795767,141.77,141.65,33.6974]
[1719600585781,0.68795767,141.76,141.66,7.0589]
[1719600587479,0.68795767,141.76,141.68,7.058]
[1719600587663,0.68795767,141.77,141.65,16.049]
[1719600587982,0.68795767,141.76,141.65,16.049]
[1719600588166,27.2718,141.75,141.65,16.049]
[1719600588360,54.22795767,141.74,141.65,16.049]
[1719600588562,0.68795767,141.73,141.63,6.2505]
[1719600590605,0.68795767,141.73,141.64,7.0598]
[1719600590815,16.78,141.72,141.67,16.78]
[1719600591017,20.0,141.71,141.67,16.78]
[1719600591792,20.0,141.71,141.65,7.0593]
[1719600592018,17.46795767,141.74,141.68,16.78]
[1719600592019,20.0,141.73,141.68,16.78]
[1719600592509,20.0,141.73,141.69,16.78]
[1719600593314,20.0,141.73,141.64,24.7094]
[1719600593524,20.0,141.73,141.68,16.78]
[1719600593525,36.78,141.73,141.68,16.78]
[1719600594118,36.78,141.73,141.64,24.7094]
[1719600594319,36.78,141.73,141.68,16.78]
[1719600595003,20.0,141.73,141.68,16.78]
[1719600595203,20.68795767,141.73,141.68,16.78]
[1719600595805,16.78,141.72,141.63,13.311]
[1719600596007,16.78,141.7,141.62,15.3591]
[1719600596229,17.46795767,141.69,141.64,16.78]
[1719600596601,17.46795767,141.69,141.62,15.3591]
[1719600596821,17.46795767,141.69,141.64,16.78]
[1719600597236,16.78,141.69,141.64,16.78]
[1719600597547,16.78,141.69,141.63,0.55580355]
[1719600597720,0.68795767,141.68,141.64,16.78]
[1719600598809,0.68795767,141.68,141.62,15.3591]
[1719600599008,17.46795767,141.68,141.62,15.3591]
[1719600599219,16.78,141.68,141.63,16.78]
[1719600600146,16.78,141.68,141.62,15.3591]
[1719600600327,16.78,141.68,141.63,16.78]
[1719600601050,16.78,141.68,141.58,0.843794]
[1719600601051,16.78,141.65,141.58,15.953094]
[1719600601214,20.68795767,141.67,141.58,15.953094]
[1719600601215,17.46795767,141.64,141.59,16.78]
[1719600601409,20.0,141.67,141.59,16.78]
[1719600601410,16.78,141.65,141.59,16.78]
[1719600601633,16.78,141.65,141.6,16.78]
[1719600601836,0.68795767,141.66,141.6,16.78]
[1719600602035,0.68795767,141.67,141.61,16.78]
[1719600602215,37.46795767,141.68,141.62,16.78]
[1719600602412,37.46795767,141.68,141.63,16.78]
[1719600602719,4.38394424,141.72,141.64,16.78]
[1719600603037,16.78,141.7,141.64,16.78]
[1719600603226,17.46795767,141.69,141.61,17.6537]
[1719600603430,17.46795767,141.69,141.63,16.78]
[1719600603431,16.78,141.68,141.63,16.78]
[1719600603934,0.68795767,141.69,141.63,16.78]
[1719600604135,16.78,141.68,141.63,16.78]
[1719600604540,16.78,141.69,141.63,16.78]
[1719600604746,20.0,141.68,141.63,16.78]
[1719600605317,20.0,141.68,141.64,16.78]
[1719600606118,20.68795767,141.69,141.64,16.78]
[1719600606326,20.0,141.69,141.64,16.78]
[1719600606524,20.68795767,141.69,141.64,16.78]
[1719600607019,37.46795767,141.69,141.64,16.78]
[1719600607623,37.46795767,141.69,141.62,7.072]
[1719600607945,16.78,141.68,141.63,16.78]
[1719600608125,17.46795767,141.68,141.63,16.78]
[1719600609418,0.68795767,141.68,141.63,16.78]
[1719600609843,20.0,141.69,141.64,16.78]
[1719600610236,20.0,141.69,141.63,7.0605]
[1719600610434,16.78,141.71,141.66,16.78]
[1719600610747,20.68795767,141.7,141.66,16.78]
[1719600611250,6.92795767,141.73,141.67,1.41160336]
[1719600611417,20.0,141.72,141.67,16.78]
[1719600611740,20.0,141.72,141.68,16.78]
[1719600612945,16.78,141.73,141.68,16.78]
[1719600613124,20.0,141.72,141.68,16.78]
[1719600613821,20.68795767,141.72,141.67,16.78]
[1719600614035,20.0,141.72,141.67,16.78]
[1719600614248,20.0,141.72,141.68,16.78]
[1719600614822,37.46795767,141.72,141.64,17.65]
[1719600615017,20.0,141.71,141.64,17.65]
[1719600615244,0.68795767,141.7,141.65,16.78]
[1719600615450,16.78,141.69,141.63,15.5527]
[1719600615749,20.68795767,141.68,141.63,32.3327]
[1719600615953,37.46795767,141.68,141.63,32.3327]
[1719600616335,36.78,141.68,141.63,32.3327]
[1719600617029,20.0,141.68,141.64,16.78]
[1719600617346,17.46795767,141.72,141.67,16.78]
[1719600617529,20.68795767,141.71,141.67,16.78]
[1719600617731,20.0,141.71,141.67,16.78]
[1719600618239,20.68795767,141.71,141.67,16.78]
[1719600618439,0.68795767,141.7,141.67,16.78]
[1719600618621,17.46795767,141.7,141.65,16.78]
[1719600618822,20.0,141.69,141.65,16.78]
[1719600619018,17.46795767,141.7,141.65,16.78]
[1719600619219,20.0,141.69,141.65,16.78]
[1719600620330,20.0,141.69,141.66,16.78]
[1719600620637,16.78,141.72,141.67,16.78]
[1719600620954,20.0,141.71,141.68,16.78]
[1719600621252,20.0,141.72,141.68,16.78]
[1719600622531,20.0,141.73,141.68,16.78]
[1719600623029,20.68795767,141.75,141.66,14.1309]
[1719600623346,7.95284292,141.8,141.69,16.0404]
[1719600623347,4.38525248,141.78,141.69,16.0404]
[1719600623551,16.78,141.77,141.72,16.78]
[1719600623747,17.46795767,141.78,141.73,0.38395504]
[1719600623952,17.46795767,141.78,141.73,17.16395504]
[1719600624259,16.78,141.78,141.74,0.38392795]
[1719600624435,3.69729481,141.81,141.7,7.0568]
[1719600624436,0.68795767,141.81,141.75,16.78]
[1719600624650,16.78,141.8,141.75,16.78]
[1719600625731,16.78,141.8,141.72,7.072]
[1719600625732,0.68795767,141.82,141.76,16.78]
[1719600625927,0.68795767,141.83,141.78,16.78]
[1719600626139,6.6502,141.84,141.79,1.37746757]
[1719600626432,1.22815924,141.87,141.8,18.15737042]
[1719600626433,5.61210607,141.87,141.8,18.15737042]
[1719600626628,0.68795767,141.87,141.81,1.37727328]
[1719600626859,0.68795767,141.87,141.76,17.6345]
[1719600627035,0.68795767,141.87,141.75,48.5912]
[1719600627756,20.68795767,141.87,141.75,55.6458]
[1719600628153,20.68795767,141.87,141.75,166.2275]
[1719600628857,20.68795767,141.87,141.75,173.2817]
[1719600629036,20.68795767,141.87,141.8,7.0521]
[1719600629232,20.68795767,141.87,141.75,148.5912]
[1719600629233,20.68795767,141.87,141.76,6.5008]
[1719600629434,6.1185,141.88,141.79,17.6313]
[1719600629738,0.68795767,141.87,141.79,17.6313]
[1719600630054,6.1185,141.88,141.8,0.74790206]
[1719600630238,6.97935767,141.91,141.79,17.6313]
[1719600630444,6.97935767,141.91,141.78,33.5]
[1719600630951,54.73,141.9,141.76,57.6353]
[1719600631151,0.68795767,141.89,141.77,1.40899704]
[1719600631456,9.08778077,141.89,141.76,40.0008]
[1719600631832,30.31778077,141.89,141.76,40.0008]
[1719600632033,6.0908,141.87,141.75,15.0912]
[1719600632231,20.68795767,141.86,141.75,22.1458]
[1719600632457,0.68795767,141.85,141.75,22.1458]
[1719600632864,0.68795767,141.85,141.76,7.0541]
[1719600633162,0.68795767,141.85,141.75,39.782]
[1719600634358,0.68795767,141.85,141.75,32.7275]
[1719600641971,0.68795767,141.85,141.75,39.782]
[1719600643063,0.68795767,141.85,141.75,32.7275]
[1719600643253,0.68795767,141.85,141.75,15.0912]
[1719600644570,0.68795767,141.85,141.73,40.5554]
[1719600645761,0.68795767,141.85,141.72,123.9379]
[1719600645762,6.2645,141.84,141.71,22.14269395]
[1719600645965,20.68795767,141.83,141.71,22.14269395]
[1719600646160,0.68795767,141.82,141.71,22.14269395]
[1719600646361,0.68795767,141.82,141.71,16.5643]
[1719600646771,16.77,141.79,141.73,16.77]
[1719600646967,0.68795767,141.78,141.73,16.77]
[1719600648882,0.68795767,141.78,141.71,23.6209]
[1719600649078,0.68795767,141.82,141.71,23.6209]
[1719600649259,0.68795767,141.82,141.72,7.0561]
[1719600649579,0.68795767,141.82,141.71,34.2057]
[1719600649580,0.68795767,141.82,141.71,16.5643]
[1719600649795,0.68795767,141.82,141.75,7.0545]
[1719600649953,0.68795767,141.82,141.75,17.6364]
[1719600650155,0.68795767,141.82,141.74,7.0549]
[1719600650458,0.68795767,141.82,141.73,7.0554]
[1719600652978,0.68795767,141.82,141.71,16.5643]
[1719600653479,0.68795767,141.82,141.71,23.6209]
[1719600656685,0.68795767,141.82,141.72,7.056]
[1719600657770,0.68795767,141.82,141.73,7.0555]
[1719600658476,0.68795767,141.82,141.74,1.40973356]
[1719600658683,0.68795767,141.82,141.75,24.6899]
[1719600658856,0.68795767,141.82,141.76,1.40953466]
[1719600659051,0.68795767,141.82,141.77,1.4104045]
[1719600659658,0.68795767,141.82,141.74,1.41045538]
[1719600661081,20.0,141.83,141.74,1.41045538]
[1719600661290,20.0,141.83,141.74,34.94045538]
[1719600661485,20.0,141.83,141.74,33.53]
[1719600661486,0.68795767,141.82,141.74,33.53]
[1719600661786,20.0,141.83,141.74,33.53]
[1719600662570,20.0,141.83,141.75,0.52351854]
[1719600663483,20.0,141.83,141.75,1.14276927]
[1719600663682,6.2645,141.84,141.75,17.6362]
[1719600663987,6.2645,141.84,141.77,33.53]
[1719600664287,7.23805767,141.88,141.78,100.0]
[1719600664586,7.23805767,141.92,141.83,7.0506]
[1719600664889,0.68795767,141.91,141.84,1.40949486]
[1719600665775,20.68795767,141.91,141.84,1.40949486]
[1719600666188,0.68795767,141.9,141.84,1.40949486]
[1719600666362,0.68795767,141.9,141.81,17.628]
[1719600667071,0.68795767,141.9,141.77,22.1214]
[1719600667072,0.68795767,141.89,141.78,17.6323]
[1719600667285,0.68795767,141.89,141.79,7.0525]
[1719600667595,0.68795767,141.9,141.81,7.0516]
[1719600667890,0.68795767,141.9,141.8,24.6821]
[1719600668696,0.68795767,141.89,141.78,7.0526]
[1719600669000,0.68795767,141.89,141.79,7.0524]
[1719600669368,0.68795767,141.89,141.78,40.5831]
[1719600669588,6.3404,141.88,141.75,40.0005]
[1719600669768,20.0,141.87,141.75,40.0005]
[1719600669971,20.68795767,141.87,141.76,7.0537]
[1719600670698,20.68795767,141.87,141.77,7.0536]
[1719600671068,20.68795767,141.87,141.75,46.32313107]
[1719600672217,20.68795767,141.87,141.76,7.0541]
[1719600673274,20.68795767,141.87,141.77,7.0535]
[1719600674498,6.2408,141.86,141.72,24.6953]
[1719600674680,20.68795767,141.85,141.73,7.0556]
[1719600674881,20.68795767,141.85,141.74,7.055]
[1719600675273,20.68795767,141.85,141.73,100.0]
[1719600675494,20.68795767,141.85,141.77,7.0533]
[1719600675706,20.68795767,141.85,141.76,24.6886]
[1719600675882,20.68795767,141.85,141.76,17.6345]
[1719600676304,20.68795767,141.85,141.75,7.0544]
[1719600677603,20.68795767,141.85,141.76,7.054]
[1719600679595,20.68795767,141.85,141.78,7.053]
[1719600680175,20.68795767,141.85,141.77,24.6873]
[1719600680800,20.0,141.85,141.78,7.0529]
[1719600681199,20.0,141.85,141.79,7.0526]
[1719600681499,6.2408,141.86,141.79,7.0526]
[1719600681878,6.2408,141.86,141.8,1.40996688]
[1719600682585,6.2408,141.86,141.77,58.2174]
[1719600684113,0.68795767,141.85,141.77,33.53]
[1719600684286,20.68795767,141.85,141.75,7.0544]
[1719600684606,20.0,141.85,141.76,17.6342]
[1719600684810,20.0,141.85,141.78,7.0528]
[1719600685108,6.2408,141.86,141.78,7.0528]
[1719600686181,6.2408,141.86,141.77,40.5835]
[1719600689895,6.2408,141.86,141.77,33.53]
[1719600689896,0.68795767,141.85,141.77,33.53]
[1719600690088,20.68795767,141.85,141.73,17.6381]
[1719600690611,16.76,141.82,141.77,16.76]
[1719600690913,16.76,141.83,141.77,16.76]
[1719600691098,17.44795767,141.82,141.77,16.76]
[1719600691499,6.3366,141.81,141.77,16.76]
[1719600692415,6.3366,141.81,141.75,7.0546]
[1719600692416,6.3366,141.81,141.78,16.76]
[1719600692707,6.3366,141.81,141.77,7.0532]
[1719600693088,6.3366,141.81,141.78,1.41021346]
[1719600694119,6.3366,141.81,141.76,7.0539]
[1719600694310,6.4794,141.84,141.77,7.0536]
[1719600695220,6.4794,141.84,141.76,7.0539]
[1719600698215,7.16735767,141.84,141.75,24.6909]
[1719600698392,7.16735767,141.84,141.74,40.5648]
[1719600699102,7.16735767,141.84,141.74,33.51]
[1719600699298,20.0,141.83,141.74,33.51]
[1719600699617,0.68795767,141.82,141.73,7.0555]
[1719600700617,0.68795767,141.82,141.72,17.6393]